[Event "Titled Tuesday Blitz November 14 Early 2023"]
[White "Nihal Sarin"]
[Black "Golubev, Mikhail"]
[WhiteFideId "25092340"]
[BlackFideId "14100983"]
[WhiteElo "3119"]
[BlackElo "2668"]
[Result "1-0"]
[Round "2"]
[TimeControl "180+1"]
[Date "2023.11.14"]
[WhiteClock "0:01:15"]
[BlackClock "0:00:45"]
[Board "3"]

1. e4 {[%clk 0:02:53]}  c5 {[%clk 0:02:59]} 2. Nf3 {[%clk 0:02:49]}  d6 {[%clk 0:02:58]} 3. Nc3 {[%clk 0:02:47]}  Nc6 {[%clk 0:02:55]} 4. Bb5 {[%clk 0:02:40]}  Bd7 {[%clk 0:02:54]} 5. O-O {[%clk 0:02:32]}  Nf6 {[%clk 0:02:43]} 6. Re1 {[%clk 0:02:32]}  e5 {[%clk 0:02:41]} 7. d3 {[%clk 0:02:31]}  h6 {[%clk 0:02:37]} 8. h3 {[%clk 0:02:10]}  Be7 {[%clk 0:02:34]} 9. a4 {[%clk 0:02:09]}  O-O {[%clk 0:02:33]} 10. Nh2 {[%clk 0:02:03]}  a6 {[%clk 0:02:29]} 11. Bc4 {[%clk 0:02:03]}  Nd4 {[%clk 0:02:25]} 12. a5 {[%clk 0:01:44]}  Nc6 {[%clk 0:02:20]} 13. Nd5 {[%clk 0:01:43]}  Nxd5 {[%clk 0:02:15]} 14. Bxd5 {[%clk 0:01:44]}  Nxa5 {[%clk 0:02:13]} 15. Qh5 {[%clk 0:01:39]}  Nc6 {[%clk 0:02:11]} 16. Bxh6 {[%clk 0:01:20]}  gxh6 {[%clk 0:01:18]} 17. Qg6+ {[%clk 0:01:18]}  Kh8 {[%clk 0:01:18]} 18. Qxh6+ {[%clk 0:01:18]}  Kg8 {[%clk 0:01:19]} 19. Re3 {[%clk 0:01:16]}  Bh4 {[%clk 0:01:19]} 20. Nf3 {[%clk 0:01:15]}  Bf6 {[%clk 0:01:13]} 21. Ng5 {[%clk 0:01:15]}  Bxg5 {[%clk 0:00:45]} 22. Rg3 {[%clk 0:01:15]} 1-0


[Site "https://www.chess.com"]

[Event "Titled Tuesday Blitz November 14 Early 2023"]
[White "Borgaonkar Akshay"]
[Black "Duda, Jan-Krzysztof"]
[WhiteFideId "25639110"]
[BlackFideId "1170546"]
[WhiteElo "2664"]
[BlackElo "3099"]
[Result "0-1"]
[Round "2"]
[TimeControl "180+1"]
[Date "2023.11.14"]
[WhiteClock "0:00:19"]
[BlackClock "0:00:12"]
[Board "6"]

1. e4 {[%clk 0:03:00]}  d5 {[%clk 0:03:00]} 2. exd5 {[%clk 0:02:57]}  Qxd5 {[%clk 0:03:01]} 3. Nc3 {[%clk 0:02:56]}  Qd8 {[%clk 0:03:01]} 4. Nf3 {[%clk 0:02:54]}  Nf6 {[%clk 0:03:01]} 5. g3 {[%clk 0:02:54]}  b6 {[%clk 0:03:00]} 6. Bg2 {[%clk 0:02:54]}  Bb7 {[%clk 0:03:00]} 7. O-O {[%clk 0:02:54]}  g6 {[%clk 0:02:58]} 8. d4 {[%clk 0:02:47]}  Bg7 {[%clk 0:02:58]} 9. Re1 {[%clk 0:02:47]}  O-O {[%clk 0:02:59]} 10. h3 {[%clk 0:02:42]}  e6 {[%clk 0:02:57]} 11. Be3 {[%clk 0:02:41]}  Nbd7 {[%clk 0:02:57]} 12. Qd2 {[%clk 0:02:40]}  Re8 {[%clk 0:02:47]} 13. Rad1 {[%clk 0:02:39]}  a6 {[%clk 0:02:46]} 14. Bh6 {[%clk 0:02:27]}  b5 {[%clk 0:02:42]} 15. Bxg7 {[%clk 0:02:24]}  Kxg7 {[%clk 0:02:43]} 16. a3 {[%clk 0:02:18]}  Rc8 {[%clk 0:02:35]} 17. Qe3 {[%clk 0:02:15]}  c5 {[%clk 0:02:26]} 18. Ne5 {[%clk 0:02:02]}  Bxg2 {[%clk 0:02:11]} 19. Kxg2 {[%clk 0:02:03]}  cxd4 {[%clk 0:02:05]} 20. Qxd4 {[%clk 0:01:52]}  Nxe5 {[%clk 0:01:40]} 21. Qxe5 {[%clk 0:01:51]}  Qc7 {[%clk 0:01:38]} 22. Qxc7 {[%clk 0:01:48]}  Rxc7 {[%clk 0:01:39]} 23. Rd6 {[%clk 0:01:49]}  Ra8 {[%clk 0:01:34]} 24. Re2 {[%clk 0:01:46]}  Nd7 {[%clk 0:01:30]} 25. Na2 {[%clk 0:01:36]}  Kf8 {[%clk 0:01:26]} 26. Nb4 {[%clk 0:01:35]}  a5 {[%clk 0:01:25]} 27. Na2 {[%clk 0:01:25]}  Ke7 {[%clk 0:01:18]} 28. Red2 {[%clk 0:01:23]}  Ne5 {[%clk 0:01:16]} 29. b3 {[%clk 0:01:23]}  Rac8 {[%clk 0:01:11]} 30. f4 {[%clk 0:01:16]}  Nd7 {[%clk 0:00:58]} 31. Kf3 {[%clk 0:01:04]}  Nf6 {[%clk 0:00:53]} 32. c3 {[%clk 0:00:55]}  Nd5 {[%clk 0:00:34]} 33. Ra6 {[%clk 0:00:55]}  Nxc3 {[%clk 0:00:35]} 34. Rxa5 {[%clk 0:00:54]}  Nxa2 {[%clk 0:00:33]} 35. Rxa2 {[%clk 0:00:55]}  Rc3+ {[%clk 0:00:33]} 36. Kg4 {[%clk 0:00:52]}  Rxb3 {[%clk 0:00:31]} 37. Rd2 {[%clk 0:00:53]}  Kf6 {[%clk 0:00:23]} 38. Rg2 {[%clk 0:00:43]}  Rc4 {[%clk 0:00:20]} 39. h4 {[%clk 0:00:40]}  h5+ {[%clk 0:00:19]} 40. Kh3 {[%clk 0:00:41]}  Rxf4 {[%clk 0:00:19]} 41. Rxb5 {[%clk 0:00:30]}  Rxh4+ {[%clk 0:00:19]} 42. Kxh4 {[%clk 0:00:28]}  Rxb5 {[%clk 0:00:20]} 43. Rf2+ {[%clk 0:00:27]}  Kg7 {[%clk 0:00:18]} 44. Rf3 {[%clk 0:00:28]}  Ra5 {[%clk 0:00:17]} 45. Rb3 {[%clk 0:00:27]}  Ra4+ {[%clk 0:00:17]} 46. Kh3 {[%clk 0:00:28]}  g5 {[%clk 0:00:17]} 47. Kg2 {[%clk 0:00:28]}  Kg6 {[%clk 0:00:18]} 48. Kf3 {[%clk 0:00:29]}  h4 {[%clk 0:00:17]} 49. gxh4 {[%clk 0:00:29]}  Rxh4 {[%clk 0:00:18]} 50. Kg3 {[%clk 0:00:24]}  Ra4 {[%clk 0:00:16]} 51. Re3 {[%clk 0:00:25]}  g4 {[%clk 0:00:12]} 52. Kh4 {[%clk 0:00:23]}  Kf5 {[%clk 0:00:12]} 53. Kg3 {[%clk 0:00:24]}  e5 {[%clk 0:00:11]} 54. Rb3 {[%clk 0:00:23]}  Kg5 {[%clk 0:00:11]} 55. Re3 {[%clk 0:00:22]}  e4 {[%clk 0:00:12]} 56. Rb3 {[%clk 0:00:19]}  f5 {[%clk 0:00:12]} 57. Kf2 {[%clk 0:00:20]}  Kf4 {[%clk 0:00:12]} 58. Kg1 {[%clk 0:00:20]}  Rc4 {[%clk 0:00:11]} 59. Kg2 {[%clk 0:00:21]}  Rc2+ {[%clk 0:00:11]} 60. Kg1 {[%clk 0:00:21]}  Ra2 {[%clk 0:00:11]} 61. Rc3 {[%clk 0:00:20]}  g3 {[%clk 0:00:12]} 62. Kf1 {[%clk 0:00:20]}  Kg4 {[%clk 0:00:12]} 63. Kg1 {[%clk 0:00:21]}  f4 {[%clk 0:00:13]} 64. Rc8 {[%clk 0:00:20]}  Ra1+ {[%clk 0:00:13]} 65. Rc1 {[%clk 0:00:19]}  Rxc1+ {[%clk 0:00:12]} 0-1


[Site "https://www.chess.com"]

[Event "Titled Tuesday Blitz November 14 Early 2023"]
[White "Skvortsov, Andrei"]
[Black "Firouzja, Alireza"]
[WhiteFideId "24108600"]
[BlackFideId "12573981"]
[WhiteElo "2662"]
[BlackElo "3076"]
[Result "0-1"]
[Round "2"]
[TimeControl "180+1"]
[Date "2023.11.14"]
[WhiteClock "0:00:07"]
[BlackClock "0:00:18"]
[Board "7"]

1. e4 {[%clk 0:03:00]}  c5 {[%clk 0:02:58]} 2. d4 {[%clk 0:03:00]}  cxd4 {[%clk 0:02:58]} 3. Qxd4 {[%clk 0:03:01]}  Nc6 {[%clk 0:02:58]} 4. Qd3 {[%clk 0:03:02]}  Nf6 {[%clk 0:02:57]} 5. Nc3 {[%clk 0:03:02]}  e6 {[%clk 0:02:54]} 6. Bf4 {[%clk 0:03:02]}  Bb4 {[%clk 0:02:50]} 7. O-O-O {[%clk 0:03:00]}  O-O {[%clk 0:02:50]} 8. Nge2 {[%clk 0:02:59]}  Qa5 {[%clk 0:02:37]} 9. f3 {[%clk 0:02:56]}  d5 {[%clk 0:02:28]} 10. exd5 {[%clk 0:02:52]}  exd5 {[%clk 0:02:28]} 11. a3 {[%clk 0:02:22]}  Bxa3 {[%clk 0:02:11]} 12. bxa3 {[%clk 0:02:21]}  Qxa3+ {[%clk 0:02:11]} 13. Kb1 {[%clk 0:02:21]}  Nb4 {[%clk 0:02:10]} 14. Qd4 {[%clk 0:02:16]}  Bf5 {[%clk 0:02:08]} 15. Rd2 {[%clk 0:02:10]}  Rfc8 {[%clk 0:01:42]} 16. Bd6 {[%clk 0:02:02]}  Qb3+ {[%clk 0:01:09]} 17. Kc1 {[%clk 0:02:01]}  Na2+ {[%clk 0:01:06]} 18. Kd1 {[%clk 0:02:00]}  Nxc3+ {[%clk 0:01:05]} 19. Nxc3 {[%clk 0:01:52]}  Qxc3 {[%clk 0:01:06]} 20. Qxc3 {[%clk 0:01:47]}  Rxc3 {[%clk 0:01:07]} 21. Be5 {[%clk 0:01:46]}  Ra3 {[%clk 0:01:06]} 22. g4 {[%clk 0:01:45]}  Bg6 {[%clk 0:01:04]} 23. h4 {[%clk 0:01:41]}  Rxf3 {[%clk 0:00:44]} 24. Bg2 {[%clk 0:01:35]}  Ra3 {[%clk 0:00:44]} 25. h5 {[%clk 0:01:02]}  Be4 {[%clk 0:00:43]} 26. Bxf6 {[%clk 0:00:57]}  Bxg2 {[%clk 0:00:41]} 27. Rxg2 {[%clk 0:00:53]}  gxf6 {[%clk 0:00:42]} 28. Kd2 {[%clk 0:00:53]}  Rc8 {[%clk 0:00:36]} 29. g5 {[%clk 0:00:51]}  Rxc2+ {[%clk 0:00:31]} 30. Kxc2 {[%clk 0:00:48]}  Ra2+ {[%clk 0:00:32]} 31. Kd3 {[%clk 0:00:49]}  Rxg2 {[%clk 0:00:32]} 32. gxf6 {[%clk 0:00:49]}  Rf2 {[%clk 0:00:30]} 33. Rb1 {[%clk 0:00:38]}  b6 {[%clk 0:00:27]} 34. Rg1+ {[%clk 0:00:26]}  Kf8 {[%clk 0:00:26]} 35. Rg7 {[%clk 0:00:26]}  h6 {[%clk 0:00:26]} 36. Rh7 {[%clk 0:00:23]}  Rxf6 {[%clk 0:00:25]} 37. Rh8+ {[%clk 0:00:23]}  Kg7 {[%clk 0:00:25]} 38. Ra8 {[%clk 0:00:23]}  a5 {[%clk 0:00:23]} 39. Kd4 {[%clk 0:00:24]}  Rf5 {[%clk 0:00:21]} 40. Ra6 {[%clk 0:00:24]}  Rxh5 {[%clk 0:00:21]} 41. Rxb6 {[%clk 0:00:25]}  Rg5 {[%clk 0:00:20]} 42. Ra6 {[%clk 0:00:24]}  h5 {[%clk 0:00:20]} 43. Rxa5 {[%clk 0:00:22]}  h4 {[%clk 0:00:21]} 44. Ra3 {[%clk 0:00:21]}  Rh5 {[%clk 0:00:20]} 45. Rh3 {[%clk 0:00:20]}  Kf6 {[%clk 0:00:21]} 46. Rf3+ {[%clk 0:00:15]}  Ke6 {[%clk 0:00:21]} 47. Re3+ {[%clk 0:00:15]}  Kf5 {[%clk 0:00:21]} 48. Rf3+ {[%clk 0:00:11]}  Kg6 {[%clk 0:00:17]} 49. Rh3 {[%clk 0:00:10]}  Kg5 {[%clk 0:00:17]} 50. Rh1 {[%clk 0:00:08]}  h3 {[%clk 0:00:18]} 51. Kxd5 {[%clk 0:00:08]}  Kf4+ {[%clk 0:00:18]} 52. Kd4 {[%clk 0:00:08]}  h2 {[%clk 0:00:18]} 53. Kd3 {[%clk 0:00:07]}  Kf3 {[%clk 0:00:18]} 0-1


[Site "https://www.chess.com"]

[Event "Titled Tuesday Blitz November 14 Early 2023"]
[White "Sadhwani, Raunak"]
[Black "Raahul V S"]
[WhiteFideId "35093487"]
[BlackFideId "25035525"]
[WhiteElo "3060"]
[BlackElo "2658"]
[Result "1-0"]
[Round "2"]
[TimeControl "180+1"]
[Date "2023.11.14"]
[WhiteClock "0:00:18"]
[BlackClock "0:00:08"]
[Board "10"]

1. h3 {[%clk 0:02:54]}  d5 {[%clk 0:02:59]} 2. d4 {[%clk 0:02:50]}  Nf6 {[%clk 0:02:58]} 3. Nf3 {[%clk 0:02:50]}  e6 {[%clk 0:02:55]} 4. Bf4 {[%clk 0:02:49]}  Bd6 {[%clk 0:02:54]} 5. e3 {[%clk 0:02:47]}  O-O {[%clk 0:02:54]} 6. Nbd2 {[%clk 0:02:44]}  Qe7 {[%clk 0:02:50]} 7. Bd3 {[%clk 0:02:36]}  Nc6 {[%clk 0:02:49]} 8. Ne5 {[%clk 0:02:35]}  Bxe5 {[%clk 0:02:14]} 9. dxe5 {[%clk 0:02:32]}  Nd7 {[%clk 0:02:14]} 10. O-O {[%clk 0:02:33]}  Ndxe5 {[%clk 0:02:10]} 11. Bxe5 {[%clk 0:02:34]}  Nxe5 {[%clk 0:02:10]} 12. Bxh7+ {[%clk 0:02:34]}  Kxh7 {[%clk 0:02:11]} 13. Qh5+ {[%clk 0:02:35]}  Kg8 {[%clk 0:02:12]} 14. Qxe5 {[%clk 0:02:36]}  Qd6 {[%clk 0:01:50]} 15. Qxd6 {[%clk 0:02:18]}  cxd6 {[%clk 0:01:51]} 16. a4 {[%clk 0:02:05]}  Bd7 {[%clk 0:01:49]} 17. a5 {[%clk 0:02:06]}  Bb5 {[%clk 0:01:47]} 18. Rfc1 {[%clk 0:02:06]}  Rac8 {[%clk 0:01:46]} 19. c3 {[%clk 0:02:07]}  Bc4 {[%clk 0:01:38]} 20. f4 {[%clk 0:01:59]}  Rc6 {[%clk 0:01:35]} 21. Kf2 {[%clk 0:01:59]}  Rb8 {[%clk 0:01:28]} 22. g4 {[%clk 0:01:51]}  Kf8 {[%clk 0:01:27]} 23. h4 {[%clk 0:01:51]}  Ke7 {[%clk 0:01:28]} 24. h5 {[%clk 0:01:52]}  Bd3 {[%clk 0:01:26]} 25. Nf3 {[%clk 0:01:41]}  Rc4 {[%clk 0:01:25]} 26. Ra3 {[%clk 0:01:35]}  Rbc8 {[%clk 0:01:19]} 27. Rd1 {[%clk 0:01:34]}  Bc2 {[%clk 0:01:15]} 28. Rc1 {[%clk 0:01:30]}  Bd3 {[%clk 0:01:15]} 29. Rd1 {[%clk 0:01:31]}  Bc2 {[%clk 0:01:15]} 30. Rda1 {[%clk 0:01:31]}  Rh8 {[%clk 0:01:03]} 31. Rc1 {[%clk 0:01:28]}  Bd3 {[%clk 0:01:02]} 32. Rb3 {[%clk 0:01:27]}  Rc7 {[%clk 0:01:00]} 33. Rh1 {[%clk 0:01:16]}  Be4 {[%clk 0:00:53]} 34. Rb4 {[%clk 0:01:11]}  Kd7 {[%clk 0:00:47]} 35. Rg1 {[%clk 0:01:03]}  Bxf3 {[%clk 0:00:43]} 36. Kxf3 {[%clk 0:01:04]}  Kc8 {[%clk 0:00:44]} 37. Rh1 {[%clk 0:01:01]}  Rc5 {[%clk 0:00:43]} 38. Ra4 {[%clk 0:01:01]}  Rb5 {[%clk 0:00:43]} 39. b4 {[%clk 0:01:01]}  Kb8 {[%clk 0:00:41]} 40. g5 {[%clk 0:00:58]}  a6 {[%clk 0:00:20]} 41. Raa1 {[%clk 0:00:46]}  Kc7 {[%clk 0:00:20]} 42. Rag1 {[%clk 0:00:42]}  Kd7 {[%clk 0:00:19]} 43. h6 {[%clk 0:00:35]}  g6 {[%clk 0:00:19]} 44. Rc1 {[%clk 0:00:27]}  Rc8 {[%clk 0:00:15]} 45. Rc2 {[%clk 0:00:18]}  Rh8 {[%clk 0:00:14]} 46. c4 {[%clk 0:00:16]}  Rxb4 {[%clk 0:00:14]} 47. cxd5 {[%clk 0:00:16]}  exd5 {[%clk 0:00:15]} 48. Rhc1 {[%clk 0:00:17]}  Rc4 {[%clk 0:00:13]} 49. Rxc4 {[%clk 0:00:17]}  dxc4 {[%clk 0:00:14]} 50. Rxc4 {[%clk 0:00:18]}  d5 {[%clk 0:00:12]} 51. Rb4 {[%clk 0:00:18]}  Kc6 {[%clk 0:00:12]} 52. Rb6+ {[%clk 0:00:18]}  Kc5 {[%clk 0:00:08]} 53. Rxb7 {[%clk 0:00:18]} 1-0


[Site "https://www.chess.com"]

[Event "Titled Tuesday Blitz November 14 Early 2023"]
[White "Degenbaev, Aziz"]
[Black "Demchenko, Anton"]
[WhiteFideId "13802640"]
[BlackFideId "4160258"]
[WhiteElo "2650"]
[BlackElo "3026"]
[Result "0-1"]
[Round "2"]
[TimeControl "180+1"]
[Date "2023.11.14"]
[WhiteClock "0:00:51"]
[BlackClock "0:01:54"]
[Board "13"]

1. e4 {[%clk 0:02:57]}  e5 {[%clk 0:03:00]} 2. Nf3 {[%clk 0:02:56]}  Nc6 {[%clk 0:03:00]} 3. d4 {[%clk 0:02:57]}  exd4 {[%clk 0:03:00]} 4. Nxd4 {[%clk 0:02:57]}  Bc5 {[%clk 0:03:01]} 5. Nb3 {[%clk 0:02:57]}  Bb6 {[%clk 0:03:01]} 6. Nc3 {[%clk 0:02:58]}  d6 {[%clk 0:03:01]} 7. Qe2 {[%clk 0:02:58]}  a5 {[%clk 0:03:01]} 8. a4 {[%clk 0:02:33]}  Nb4 {[%clk 0:03:00]} 9. Bf4 {[%clk 0:02:30]}  Ne7 {[%clk 0:02:50]} 10. O-O-O {[%clk 0:02:30]}  O-O {[%clk 0:02:51]} 11. Bg3 {[%clk 0:02:24]}  Nec6 {[%clk 0:02:41]} 12. f4 {[%clk 0:02:20]}  Be6 {[%clk 0:02:38]} 13. Bf2 {[%clk 0:02:12]}  Nxc2 {[%clk 0:02:24]} 14. Kxc2 {[%clk 0:01:46]}  Nb4+ {[%clk 0:02:22]} 15. Kb1 {[%clk 0:01:47]}  Bxb3 {[%clk 0:02:23]} 16. Rc1 {[%clk 0:01:40]}  Bxf2 {[%clk 0:02:13]} 17. Qxf2 {[%clk 0:01:40]}  Qd7 {[%clk 0:02:14]} 18. Bb5 {[%clk 0:01:39]}  c6 {[%clk 0:02:15]} 19. Be2 {[%clk 0:01:38]}  f5 {[%clk 0:02:08]} 20. e5 {[%clk 0:01:33]}  dxe5 {[%clk 0:02:04]} 21. fxe5 {[%clk 0:01:34]}  f4 {[%clk 0:01:59]} 22. Qc5 {[%clk 0:01:05]}  Kh8 {[%clk 0:01:57]} 23. Bd1 {[%clk 0:00:51]}  Nd3 {[%clk 0:01:54]} 0-1


[Site "https://www.chess.com"]

[Event "Titled Tuesday Blitz November 14 Early 2023"]
[White "Bortnyk, Olexandr"]
[Black "Hilary46"]
[WhiteFideId "14120828"]
[WhiteElo "3013"]
[BlackElo "2640"]
[Result "0-1"]
[Round "2"]
[TimeControl "180+1"]
[Date "2023.11.14"]
[WhiteClock "0:00:00"]
[BlackClock "0:00:06"]
[Board "16"]

1. e4 {[%clk 0:02:53]}  e5 {[%clk 0:03:00]} 2. Nf3 {[%clk 0:02:45]}  Nc6 {[%clk 0:03:00]} 3. Bb5 {[%clk 0:02:46]}  a6 {[%clk 0:03:00]} 4. Ba4 {[%clk 0:02:46]}  Nf6 {[%clk 0:03:00]} 5. Nc3 {[%clk 0:02:47]}  b5 {[%clk 0:03:00]} 6. Bb3 {[%clk 0:02:47]}  Bc5 {[%clk 0:02:55]} 7. Nd5 {[%clk 0:02:48]}  d6 {[%clk 0:02:47]} 8. Nxf6+ {[%clk 0:02:41]}  Qxf6 {[%clk 0:02:48]} 9. Bd5 {[%clk 0:02:41]}  Bd7 {[%clk 0:02:48]} 10. c3 {[%clk 0:02:39]}  O-O {[%clk 0:02:45]} 11. d4 {[%clk 0:02:38]}  exd4 {[%clk 0:02:36]} 12. cxd4 {[%clk 0:02:34]}  Bb4+ {[%clk 0:02:36]} 13. Bd2 {[%clk 0:02:34]}  Rae8 {[%clk 0:02:19]} 14. O-O {[%clk 0:02:29]}  Bxd2 {[%clk 0:02:15]} 15. Qxd2 {[%clk 0:02:30]}  Ne7 {[%clk 0:02:10]} 16. Bb3 {[%clk 0:02:17]}  Ng6 {[%clk 0:01:59]} 17. e5 {[%clk 0:02:09]}  dxe5 {[%clk 0:01:46]} 18. dxe5 {[%clk 0:02:10]}  Qe7 {[%clk 0:01:44]} 19. Rfe1 {[%clk 0:02:05]}  c5 {[%clk 0:01:31]} 20. h3 {[%clk 0:01:53]}  Bc6 {[%clk 0:01:23]} 21. Nh2 {[%clk 0:01:27]}  c4 {[%clk 0:01:11]} 22. Bc2 {[%clk 0:01:27]}  Nxe5 {[%clk 0:01:11]} 23. Ng4 {[%clk 0:01:22]}  Qc5 {[%clk 0:01:07]} 24. b4 {[%clk 0:01:03]}  cxb3 {[%clk 0:01:02]} 25. axb3 {[%clk 0:00:58]}  Nxg4 {[%clk 0:01:00]} 26. Rxe8 {[%clk 0:00:58]}  Rxe8 {[%clk 0:00:58]} 27. hxg4 {[%clk 0:00:58]}  g6 {[%clk 0:00:43]} 28. Rxa6 {[%clk 0:00:53]}  Qd5 {[%clk 0:00:28]} 29. Qxd5 {[%clk 0:00:53]}  Bxd5 {[%clk 0:00:29]} 30. f3 {[%clk 0:00:51]}  Rc8 {[%clk 0:00:28]} 31. Bd3 {[%clk 0:00:32]}  Bxb3 {[%clk 0:00:26]} 32. Bxb5 {[%clk 0:00:33]}  Be6 {[%clk 0:00:26]} 33. Rd6 {[%clk 0:00:31]}  Kg7 {[%clk 0:00:27]} 34. Kf2 {[%clk 0:00:31]}  h6 {[%clk 0:00:27]} 35. Kg3 {[%clk 0:00:31]}  Rc2 {[%clk 0:00:27]} 36. Bc6 {[%clk 0:00:28]}  Rb2 {[%clk 0:00:27]} 37. Be4 {[%clk 0:00:28]}  g5 {[%clk 0:00:25]} 38. Rc6 {[%clk 0:00:23]}  Rb4 {[%clk 0:00:25]} 39. Rc5 {[%clk 0:00:19]}  Rd4 {[%clk 0:00:25]} 40. Kf2 {[%clk 0:00:17]}  Ra4 {[%clk 0:00:25]} 41. Kg3 {[%clk 0:00:15]}  Rb4 {[%clk 0:00:25]} 42. Rc7 {[%clk 0:00:15]}  Rd4 {[%clk 0:00:24]} 43. Rb7 {[%clk 0:00:16]}  Ra4 {[%clk 0:00:23]} 44. Rb6 {[%clk 0:00:16]}  Rc4 {[%clk 0:00:23]} 45. Ra6 {[%clk 0:00:09]}  Rd4 {[%clk 0:00:23]} 46. Ra3 {[%clk 0:00:08]}  Rb4 {[%clk 0:00:22]} 47. Re3 {[%clk 0:00:09]}  Rb2 {[%clk 0:00:21]} 48. Re1 {[%clk 0:00:09]}  Bc4 {[%clk 0:00:20]} 49. Bf5 {[%clk 0:00:09]}  Rb6 {[%clk 0:00:20]} 50. Re7 {[%clk 0:00:07]}  Be6 {[%clk 0:00:18]} 51. Be4 {[%clk 0:00:04]}  Kf6 {[%clk 0:00:18]} 52. Re8 {[%clk 0:00:04]}  Rb2 {[%clk 0:00:18]} 53. Rh8 {[%clk 0:00:04]}  Bc4 {[%clk 0:00:13]} 54. Rxh6+ {[%clk 0:00:04]}  Ke7 {[%clk 0:00:14]} 55. Rh1 {[%clk 0:00:03]}  Kf6 {[%clk 0:00:13]} 56. Rh6+ {[%clk 0:00:03]}  Ke7 {[%clk 0:00:13]} 57. Rh1 {[%clk 0:00:04]}  Kf6 {[%clk 0:00:13]} 58. Rc1 {[%clk 0:00:05]}  Be6 {[%clk 0:00:13]} 59. Rc6 {[%clk 0:00:05]}  Rb4 {[%clk 0:00:11]} 60. Rc5 {[%clk 0:00:05]}  Ra4 {[%clk 0:00:09]} 61. Rb5 {[%clk 0:00:05]}  Rc4 {[%clk 0:00:10]} 62. Rb8 {[%clk 0:00:04]}  Rd4 {[%clk 0:00:10]} 63. Rb2 {[%clk 0:00:04]}  Ra4 {[%clk 0:00:10]} 64. Re2 {[%clk 0:00:05]}  Rd4 {[%clk 0:00:10]} 65. Kf2 {[%clk 0:00:05]}  Rb4 {[%clk 0:00:10]} 66. g3 {[%clk 0:00:04]}  Ra4 {[%clk 0:00:10]} 67. Bd3 {[%clk 0:00:04]}  Ra3 {[%clk 0:00:11]} 68. Rd2 {[%clk 0:00:03]}  Ra4 {[%clk 0:00:09]} 69. Be2 {[%clk 0:00:04]}  Rb4 {[%clk 0:00:09]} 70. Rc2 {[%clk 0:00:04]}  Ra4 {[%clk 0:00:09]} 71. Rc3 {[%clk 0:00:04]}  Rb4 {[%clk 0:00:09]} 72. Rc6 {[%clk 0:00:04]}  Ra4 {[%clk 0:00:09]} 73. Ke3 {[%clk 0:00:05]}  Rb4 {[%clk 0:00:09]} 74. f4 {[%clk 0:00:04]}  Rb3+ {[%clk 0:00:09]} 75. Kf2 {[%clk 0:00:04]}  gxf4 {[%clk 0:00:08]} 76. gxf4 {[%clk 0:00:05]}  Ke7 {[%clk 0:00:09]} 77. f5 {[%clk 0:00:04]}  Bd5 {[%clk 0:00:09]} 78. f6+ {[%clk 0:00:04]}  Kd7 {[%clk 0:00:08]} 79. Ra6 {[%clk 0:00:05]}  Rb2 {[%clk 0:00:08]} 80. Ra7+ {[%clk 0:00:02]}  Ke6 {[%clk 0:00:08]} 81. g5 {[%clk 0:00:03]}  Bc4 {[%clk 0:00:07]} 82. Re7+ {[%clk 0:00:03]}  Kf5 {[%clk 0:00:08]} 83. g6 {[%clk 0:00:02]}  Kxg6 {[%clk 0:00:08]} 84. Kf3 {[%clk 0:00:02]}  Rxe2 {[%clk 0:00:08]} 85. Rc7 {[%clk 0:00:02]}  Rc2 {[%clk 0:00:07]} 86. Kf4 {[%clk 0:00:01]}  Kxf6 {[%clk 0:00:07]} 87. Rc6+ {[%clk 0:00:02]}  Ke7 {[%clk 0:00:07]} 88. Rc7+ {[%clk 0:00:02]}  Kd6 {[%clk 0:00:07]} 89. Rc8 {[%clk 0:00:03]}  Rc1 {[%clk 0:00:07]} 90. Ke3 {[%clk 0:00:03]}  Kd5 {[%clk 0:00:06]} 91. Rd8+ {[%clk 0:00:03]}  Ke5 {[%clk 0:00:05]} 92. Rc8 {[%clk 0:00:03]}  Rc3+ {[%clk 0:00:04]} 93. Kf2 {[%clk 0:00:03]}  Rc2+ {[%clk 0:00:04]} 94. Ke3 {[%clk 0:00:04]}  Rc3+ {[%clk 0:00:04]} 95. Kf2 {[%clk 0:00:03]}  Kd4 {[%clk 0:00:05]} 96. Ra8 {[%clk 0:00:02]}  Bd5 {[%clk 0:00:05]} 97. Ra4+ {[%clk 0:00:02]}  Ke5 {[%clk 0:00:06]} 98. Rh4 {[%clk 0:00:02]}  f5 {[%clk 0:00:06]} 99. Ke2 {[%clk 0:00:03]}  f4 {[%clk 0:00:06]} 100. Rh7 {[%clk 0:00:03]}  Rc2+ {[%clk 0:00:06]} 101. Ke1 {[%clk 0:00:03]}  Ra2 {[%clk 0:00:06]} 102. Rh5+ {[%clk 0:00:02]}  Kd4 {[%clk 0:00:06]} 103. Rf5 {[%clk 0:00:02]}  f3 {[%clk 0:00:06]} 104. Kf1 {[%clk 0:00:00]}  Be4 {[%clk 0:00:06]} 0-1


[Site "https://www.chess.com"]

[Event "Titled Tuesday Blitz November 14 Early 2023"]
[White "Pastar, Slaven"]
[Black "Korobov, Anton"]
[WhiteFideId "14402718"]
[BlackFideId "14105730"]
[WhiteElo "2640"]
[BlackElo "3007"]
[Result "0-1"]
[Round "2"]
[TimeControl "180+1"]
[Date "2023.11.14"]
[WhiteClock "0:00:00"]
[BlackClock "0:00:10"]
[Board "17"]

1. b3 {[%clk 0:03:00]}  d5 {[%clk 0:02:58]} 2. Bb2 {[%clk 0:03:01]}  c5 {[%clk 0:02:58]} 3. Nf3 {[%clk 0:03:02]}  f6 {[%clk 0:02:57]} 4. e3 {[%clk 0:03:02]}  e5 {[%clk 0:02:57]} 5. d4 {[%clk 0:03:03]}  cxd4 {[%clk 0:02:56]} 6. exd4 {[%clk 0:03:03]}  e4 {[%clk 0:02:56]} 7. Nfd2 {[%clk 0:03:03]}  f5 {[%clk 0:02:55]} 8. c4 {[%clk 0:03:01]}  Nf6 {[%clk 0:02:55]} 9. Nc3 {[%clk 0:03:01]}  Be6 {[%clk 0:02:55]} 10. cxd5 {[%clk 0:02:58]}  Nxd5 {[%clk 0:02:55]} 11. Bc4 {[%clk 0:02:52]}  Nc6 {[%clk 0:02:53]} 12. O-O {[%clk 0:02:48]}  Be7 {[%clk 0:02:49]} 13. Bxd5 {[%clk 0:02:40]}  Bxd5 {[%clk 0:02:48]} 14. Nc4 {[%clk 0:02:41]}  O-O {[%clk 0:02:43]} 15. Nxd5 {[%clk 0:02:40]}  Qxd5 {[%clk 0:02:43]} 16. Ne3 {[%clk 0:02:18]}  Qf7 {[%clk 0:02:40]} 17. d5 {[%clk 0:02:13]}  Nb4 {[%clk 0:02:39]} 18. d6 {[%clk 0:02:09]}  Rfd8 {[%clk 0:02:14]} 19. Be5 {[%clk 0:01:38]}  Bf8 {[%clk 0:01:58]} 20. a4 {[%clk 0:01:10]}  Nd3 {[%clk 0:01:51]} 21. Nc4 {[%clk 0:01:05]}  Rac8 {[%clk 0:01:47]} 22. f4 {[%clk 0:00:56]}  Qe6 {[%clk 0:01:17]} 23. Ra2 {[%clk 0:00:51]}  Rxc4 {[%clk 0:01:09]} 24. bxc4 {[%clk 0:00:50]}  Bxd6 {[%clk 0:01:10]} 25. Bxd6 {[%clk 0:00:45]}  Qxd6 {[%clk 0:01:11]} 26. Qb3 {[%clk 0:00:34]}  Qc5+ {[%clk 0:00:52]} 27. Kh1 {[%clk 0:00:34]}  e3 {[%clk 0:00:44]} 28. Qxb7 {[%clk 0:00:19]}  Nf2+ {[%clk 0:00:33]} 29. Raxf2 {[%clk 0:00:18]}  exf2 {[%clk 0:00:33]} 30. Qf3 {[%clk 0:00:18]}  Rd2 {[%clk 0:00:30]} 31. h3 {[%clk 0:00:18]}  h6 {[%clk 0:00:29]} 32. Kh2 {[%clk 0:00:16]}  Kh7 {[%clk 0:00:24]} 33. g3 {[%clk 0:00:11]}  Qxc4 {[%clk 0:00:20]} 34. Rxf2 {[%clk 0:00:12]}  Rxf2+ {[%clk 0:00:20]} 35. Qxf2 {[%clk 0:00:13]}  Qxa4 {[%clk 0:00:20]} 36. Qc5 {[%clk 0:00:12]}  Qa2+ {[%clk 0:00:20]} 37. Kg1 {[%clk 0:00:11]}  Qb1+ {[%clk 0:00:20]} 38. Kf2 {[%clk 0:00:10]}  a6 {[%clk 0:00:20]} 39. g4 {[%clk 0:00:09]}  Qe4 {[%clk 0:00:19]} 40. Kg3 {[%clk 0:00:06]}  fxg4 {[%clk 0:00:16]} 41. hxg4 {[%clk 0:00:07]}  Qd3+ {[%clk 0:00:16]} 42. Kh4 {[%clk 0:00:05]}  Qb1 {[%clk 0:00:15]} 43. f5 {[%clk 0:00:04]}  Qh1+ {[%clk 0:00:12]} 44. Kg3 {[%clk 0:00:04]}  Qe1+ {[%clk 0:00:13]} 45. Kh3 {[%clk 0:00:04]}  a5 {[%clk 0:00:13]} 46. Qd6 {[%clk 0:00:03]}  Qe8 {[%clk 0:00:11]} 47. Qa6 {[%clk 0:00:03]}  a4 {[%clk 0:00:11]} 48. Kh4 {[%clk 0:00:02]}  Qe7+ {[%clk 0:00:10]} 49. Kg3 {[%clk 0:00:03]}  Qe3+ {[%clk 0:00:10]} 50. Kh4 {[%clk 0:00:03]}  a3 {[%clk 0:00:11]} 51. Qg6+ {[%clk 0:00:00]}  Kh8 {[%clk 0:00:10]} 0-1


[Site "https://www.chess.com"]